[Event "European Online Club-ch-D 2021"]
[Site "Online"]
[Date "2021.03.27"]
[Round "6.3"]
[White "Ozkan, Ervin"]
[Black "Hoffmann, Hendrik"]
[Result "1/2-1/2"]
[ECO "D02"]
[WhiteElo "2147"]
[BlackElo "2242"]
[Annotator "NA"]
[PlyCount "184"]
[EventDate "2021.03.27"]
[EventType "team-tourn"]
[EventCountry "NET"]
[SourceTitle "playchess.com"]
[Source "ChessBase"]
[SourceQuality "1"]
[TimeControl "900+5"]

1. d4 {[%emt 0:00:00]} d5 {[%emt 0:00:04]} 2. Nf3 {[%emt 0:00:02]} Nf6 {[%emt 0:00:03]} 3. Bf4 {[%emt 0:00:02]} c5 {[%emt 0:00:06]} 4. e3 {[%emt 0:00:01]} Nc6 {[%emt 0:00:01]} 5. c3 {[%emt 0:00:02]} Qb6 {[%emt 0:00:14]} 6. Qc2 {[%emt 0:00:23]} Bf5 {[%emt 0:00:25]} 7. dxc5 {[%emt 0:00:04]} Bxc2 {[%emt 0:00:10]} 8. cxb6 {[%emt 0:00:02]} axb6 {[%emt 0:00:01]} 9. Na3 {[%emt 0:00:01]} Bg6 {[%emt 0:01:31]} 10. Nb5 {[%emt 0:00:06]} Kd7 {[%emt 0:00:15]} 11. Ne5+ {[%emt 0:03:25]} Nxe5 {[%emt 0:00:08]} 12. Bxe5 {[%emt 0:00:03]} e6 {[%emt 0:00:18]} 13. Be2 {[%emt 0:00:36]} Be7 {[%emt 0:00:12]} 14. f3 {[%emt 0:01:26]} Rhc8 {[%emt 0:00:10]} 15. O-O {[%emt 0:01:05]} Ne8 {[%emt 0:00:33]} 16. Rfd1 {[%emt 0:00:04]} f6 {[%emt 0:00:40]} 17. Bg3 {[%emt 0:00:11]} Bc5 {[%emt 0:00:12]} 18. Kf2 {[%emt 0:01:42]} Ke7 {[%emt 0:00:31]} 19. Rd2 {[%emt 0:00:51]} Nd6 {[%emt 0:01:54]} 20. Nxd6 {[%emt 0:01:15]} Bxd6 {[%emt 0:00:05]} 21. Bxd6+ {[%emt 0:00:00]} Kxd6 {[%emt 0:00:02]} 22. e4 {[%emt 0:00:04]} Ra5 {[%emt 0:01:33]} 23. exd5 {[%emt 0:02:11]} Rxd5 {[%emt 0:00:13]} 24. Rxd5+ {[%emt 0:00:03]} exd5 {[%emt 0:00:05]} 25. Rd1 {[%emt 0:00:12]} Ke5 {[%emt 0:00:19]} 26. Rd4 {[%emt 0:00:06]} Ra8 {[%emt 0:00:19]} 27. f4+ {[%emt 0:00:19]} Ke6 {[%emt 0:00:07]} 28. Bf3 {[%emt 0:00:12]} Be4 {[%emt 0:00:19]} 29. Bxe4 {[%emt 0:00:07]} dxe4 {[%emt 0:00:01]} 30. Rxe4+ {[%emt 0:00:03]} Kf5 {[%emt 0:00:02]} 31. Rb4 {[%emt 0:00:17]} Rxa2 {[%emt 0:00:04]} 32. Rxb6 {[%emt 0:00:11]} Kxf4 {[%emt 0:00:11]} 33. Rxb7 {[%emt 0:00:03]} g5 {[%emt 0:00:07]} 34. g3+ {[%emt 0:00:56]} Ke4 {[%emt 0:00:34]} 35. Rb4+ {[%emt 0:00:08]} Ke5 {[%emt 0:00:11]} 36. g4 {[%emt 0:00:12]} Ra1 {[%emt 0:00:18]} 37. Rb5+ {[%emt 0:00:38]} Ke4 {[%emt 0:00:24]} 38. h3 {[%emt 0:00:05]} Rd1 {[%emt 0:00:26]} 39. Rb4+ {[%emt 0:00:13]} Ke5 {[%emt 0:00:04]} 40. Rd4 {[%emt 0:00:12]} Rh1 {[%emt 0:01:20]} 41. Kg2 {[%emt 0:00:03]} Rb1 {[%emt 0:00:03]} 42. Rd2 {[%emt 0:00:01]} Kf4 {[%emt 0:00:44]} 43. Rf2+ {[%emt 0:00:19]} Ke4 {[%emt 0:00:08]} 44. Re2+ {[%emt 0:00:18]} Kf4 {[%emt 0:00:06]} 45. Rc2 {[%emt 0:00:08]} Ke5 {[%emt 0:00:13]} 46. c4 {[%emt 0:00:09]} Kd6 {[%emt 0:00:05]} 47. c5+ {[%emt 0:00:08]} Kc6 {[%emt 0:00:02]} 48. Kf3 {[%emt 0:00:06]} Rh1 {[%emt 0:00:08]} 49. Kg3 {[%emt 0:00:10]} Rg1+ {[%emt 0:00:08]} 50. Kf2 {[%emt 0:00:02]} Rh1 {[%emt 0:00:04]} 51. Kg2 {[%emt 0:00:02]} Rb1 {[%emt 0:00:03]} 52. Kh2 {[%emt 0:00:03]} Rd1 {[%emt 0:01:08]} 53. b4 {[%emt 0:00:04]} Rd4 {[%emt 0:00:03]} 54. b5+ {[%emt 0:00:17]} Kxb5 {[%emt 0:00:03]} 55. c6 {[%emt 0:00:01]} Rd8 {[%emt 0:00:02]} 56. c7 {[%emt 0:00:02]} Rc8 {[%emt 0:00:02]} 57. Kg3 {[%emt 0:00:01]} Kb6 {[%emt 0:00:15]} 58. Rf2 {[%emt 0:00:11]} Kxc7 {[%emt 0:00:13]} 59. Rxf6 {[%emt 0:00:02]} Kd7 {[%emt 0:00:02]} 60. Rf7+ {[%emt 0:00:05]} Ke6 {[%emt 0:00:02]} 61. Rxh7 {[%emt 0:00:02]} Rc3+ {[%emt 0:00:03]} 62. Kg2 {[%emt 0:00:02]} Kf6 {[%emt 0:00:04]} 63. Rh8 {[%emt 0:00:05]} Kg7 {[%emt 0:00:04]} 64. Re8 {[%emt 0:00:03]} Kf7 {[%emt 0:00:05]} 65. Re5 {[%emt 0:00:06]} Kf6 {[%emt 0:00:02]} 66. Rf5+ {[%emt 0:00:02]} Kg6 {[%emt 0:00:02]} 67. Rf3 {[%emt 0:00:02]} Rc2+ {[%emt 0:00:05]} 68. Kg3 {[%emt 0:00:02]} Rc1 {[%emt 0:00:03]} 69. Ra3 {[%emt 0:00:02]} Rf1 {[%emt 0:00:03]} 70. Ra6+ {[%emt 0:00:06]} Kg7 {[%emt 0:00:03]} 71. Kg2 {[%emt 0:00:08]} Rf4 {[%emt 0:00:04]} 72. Rc6 {[%emt 0:00:13]} Kh7 {[%emt 0:00:06]} 73. Kg3 {[%emt 0:00:08]} Rf1 {[%emt 0:00:04]} 74. Rc5 {[%emt 0:00:07]} Kg6 {[%emt 0:00:06]} 75. Rc6+ {[%emt 0:00:10]} Kg7 {[%emt 0:00:02]} 76. Rc2 {[%emt 0:00:03]} Ra1 {[%emt 0:00:19]} 77. Rc3 {[%emt 0:00:03]} Rf1 {[%emt 0:00:05]} 78. Rf3 {[%emt 0:00:02]} Ra1 {[%emt 0:00:17]} 79. Rf2 {[%emt 0:00:08]} Ra3+ {[%emt 0:00:04]} 80. Kg2 {[%emt 0:00:06]} Rb3 {[%emt 0:00:05]} 81. Rf5 {[%emt 0:00:05]} Kg6 {[%emt 0:00:02]} 82. Rf3 {[%emt 0:00:03]} Rb2+ {[%emt 0:00:03]} 83. Kg3 {[%emt 0:00:02]} Ra2 {[%emt 0:00:02]} 84. h4 {[%emt 0:00:15]} gxh4+ {[%emt 0:00:04]} 85. Kxh4 {[%emt 0:00:00]} Ra1 {[%emt 0:00:05]} 86. Rb3 {[%emt 0:00:08]} Rh1+ {[%emt 0:00:06]} 87. Kg3 {[%emt 0:00:01]} Rg1+ {[%emt 0:00:02]} 88. Kf4 {[%emt 0:00:01]} Rf1+ {[%emt 0:00:02]} 89. Kg3 {[%emt 0:00:06]} Rg1+ {[%emt 0:00:02]} 90. Kf3 {[%emt 0:00:02]} Rf1+ {[%emt 0:00:03]} 91. Kg2 {[%emt 0:00:01]} Ra1 {[%emt 0:00:04]} 92. Kg3 {[%emt 0:00:08]} Rg1+ {[%emt 0:00:03]} 1/2-1/2

[Event "European Online Club-ch-D 2021"]
[Site "Online"]
[Date "2021.03.27"]
[Round "6.4"]
[White "Kelmendi, Bajrush"]
[Black "Erdogmus, Yagiz Kaan"]
[Result "0-1"]
[ECO "B20"]
[WhiteElo "1951"]
[BlackElo "1955"]
[Annotator "NA"]
[PlyCount "110"]
[EventDate "2021.03.27"]
[EventType "team-tourn"]
[EventCountry "NET"]
[SourceTitle "playchess.com"]
[Source "ChessBase"]
[SourceQuality "1"]
[TimeControl "900+5"]

1. c4 {[%emt 0:00:00]} c5 {[%emt 0:00:03]} 2. Nc3 {[%emt 0:00:03]} Nc6 {[%emt 0:00:04]} 3. e4 {[%emt 0:00:02]} g6 {[%emt 0:00:09]} 4. d3 {[%emt 0:00:01]} Bg7 {[%emt 0:00:02]} 5. Be2 {[%emt 0:00:02]} e6 {[%emt 0:00:05]} 6. g4 {[%emt 0:00:03]} Nge7 {[%emt 0:00:03]} 7. h4 {[%emt 0:00:02]} d5 {[%emt 0:00:02]} 8. h5 {[%emt 0:00:02]} dxc4 {[%emt 0:00:06]} 9. dxc4 {[%emt 0:00:02]} Qxd1+ {[%emt 0:00:04]} 10. Bxd1 {[%emt 0:00:04]} O-O {[%emt 0:00:32]} 11. f4 {[%emt 0:00:06]} Bxc3+ {[%emt 0:00:30]} 12. bxc3 {[%emt 0:00:02]} b6 {[%emt 0:00:02]} 13. f5 {[%emt 0:00:17]} Ne5 {[%emt 0:00:34]} 14. Bg5 {[%emt 0:00:09]} f6 {[%emt 0:00:52]} 15. Bh6 {[%emt 0:00:02]} Rd8 {[%emt 0:00:04]} 16. hxg6 {[%emt 0:00:05]} hxg6 {[%emt 0:00:11]} 17. fxg6 {[%emt 0:00:05]} N7xg6 {[%emt 0:00:14]} 18. g5 {[%emt 0:00:04]} Bb7 {[%emt 0:00:08]} 19. gxf6 {[%emt 0:00:04]} Bxe4 {[%emt 0:00:05]} 20. Rh5 {[%emt 0:00:08]} Kf7 {[%emt 0:00:56]} 21. Bg7 {[%emt 0:00:03]} Nd3+ {[%emt 0:00:15]} 22. Kf1 {[%emt 0:00:06]} Ndf4 {[%emt 0:00:46]} 23. Rh6 {[%emt 0:00:03]} e5 {[%emt 0:01:18]} 24. Bf3 {[%emt 0:00:14]} Bd3+ {[%emt 0:00:28]} 25. Kf2 {[%emt 0:00:03]} e4 {[%emt 0:00:06]} 26. Bh1 {[%emt 0:00:02]} Ne6 {[%emt 0:00:17]} 27. Re1 {[%emt 0:00:11]} Nxg7 {[%emt 0:00:04]} 28. fxg7 {[%emt 0:00:14]} Kxg7 {[%emt 0:00:04]} 29. Rh3 {[%emt 0:00:06]} Rf8+ {[%emt 0:00:14]} 30. Kg3 {[%emt 0:00:07]} Rae8 {[%emt 0:00:06]} 31. Rh5 {[%emt 0:00:34]} e3 {[%emt 0:00:34]} 32. Bd5 {[%emt 0:00:37]} Nf4 {[%emt 0:00:55]} 33. Rg5+ {[%emt 0:00:21]} Kh6 {[%emt 0:00:08]} 34. Rg4 {[%emt 0:00:02]} Nh5+ {[%emt 0:00:04]} 35. Kh3 {[%emt 0:00:22]} Bf5 {[%emt 0:00:05]} 36. Bf3 {[%emt 0:00:17]} Bxg4+ {[%emt 0:00:22]} 37. Bxg4 {[%emt 0:00:01]} Rf2 {[%emt 0:00:03]} 38. Ne2 {[%emt 0:00:09]} Nf4+ {[%emt 0:00:22]} 39. Nxf4 {[%emt 0:00:03]} Rxf4 {[%emt 0:00:02]} 40. Be2 {[%emt 0:00:19]} Kg5 {[%emt 0:00:04]} 41. Kg3 {[%emt 0:00:02]} Rf2 {[%emt 0:00:35]} 42. a4 {[%emt 0:00:05]} Kf6 {[%emt 0:00:49]} 43. Bf3 {[%emt 0:00:36]} Rc2 {[%emt 0:00:34]} 44. Kf4 {[%emt 0:00:08]} Rxc3 {[%emt 0:00:04]} 45. Bd5 {[%emt 0:00:01]} e2 {[%emt 0:00:08]} 46. Bf3 {[%emt 0:00:12]} Rxc4+ {[%emt 0:00:04]} 47. Kg3 {[%emt 0:00:02]} Rc3 {[%emt 0:00:01]} 48. Kf2 {[%emt 0:00:02]} c4 {[%emt 0:00:14]} 49. Bxe2 {[%emt 0:00:12]} Rc2 {[%emt 0:00:04]} 50. Kf1 {[%emt 0:00:04]} Rexe2 {[%emt 0:00:02]} 51. Rxe2 {[%emt 0:00:02]} Rxe2 {[%emt 0:00:02]} 52. Kxe2 {[%emt 0:00:01]} a6 {[%emt 0:00:01]} 53. Ke3 {[%emt 0:00:03]} Ke5 {[%emt 0:00:03]} 54. Kd2 {[%emt 0:00:02]} Kd4 {[%emt 0:00:04]} 55. Kc2 {[%emt 0:00:02]} b5 {[%emt 0:00:01]} 0-1

[Event "European Online Club-ch-D 2021"]
[Site "Online"]
[Date "2021.03.27"]
[Round "6.5"]
[White "Sanchez Gonzalez, Sergio"]
[Black "Tokhirjonova, Gulrukhbegim"]
[Result "0-1"]
[ECO "A18"]
[WhiteElo "2281"]
[BlackElo "2362"]
[Annotator "NA"]
[PlyCount "102"]
[EventDate "2021.03.27"]
[EventType "team-tourn"]
[EventCountry "NET"]
[SourceTitle "playchess.com"]
[Source "ChessBase"]
[SourceQuality "1"]
[TimeControl "900+5"]

1. c4 {[%emt 0:00:00]} Nf6 {[%emt 0:00:04]} 2. Nc3 {[%emt 0:00:13]} e6 {[%emt 0:00:01]} 3. e4 {[%emt 0:00:02]} d5 {[%emt 0:00:09]} 4. e5 {[%emt 0:00:02]} Nfd7 {[%emt 0:00:05]} 5. d4 {[%emt 0:01:23]} dxc4 {[%emt 0:00:26]} 6. Bxc4 {[%emt 0:00:00]} Nb6 {[%emt 0:00:03]} 7. Bb3 {[%emt 0:00:11]} Na6 {[%emt 0:00:52]} 8. Nf3 {[%emt 0:00:29]} Be7 {[%emt 0:00:04]} 9. a3 {[%emt 0:00:14]} c5 {[%emt 0:00:13]} 10. d5 {[%emt 0:00:25]} exd5 {[%emt 0:01:44]} 11. Nxd5 {[%emt 0:00:04]} Nxd5 {[%emt 0:00:04]} 12. Qxd5 {[%emt 0:00:04]} O-O {[%emt 0:00:22]} 13. Qe4 {[%emt 0:00:20]} Qb6 {[%emt 0:00:23]} 14. Bc2 {[%emt 0:00:12]} g6 {[%emt 0:00:03]} 15. Qe2 {[%emt 0:00:43]} Bd7 {[%emt 0:00:49]} 16. Bd3 {[%emt 0:00:19]} Nc7 {[%emt 0:00:11]} 17. O-O {[%emt 0:00:09]} Ne6 {[%emt 0:00:02]} 18. Be3 {[%emt 0:00:10]} Rac8 {[%emt 0:00:28]} 19. Rfc1 {[%emt 0:00:09]} a5 {[%emt 0:00:35]} 20. b4 {[%emt 0:01:35]} Rfd8 {[%emt 0:02:27]} 21. Rab1 {[%emt 0:00:59]} Qa7 {[%emt 0:00:17]} 22. bxc5 {[%emt 0:00:31]} Bxc5 {[%emt 0:00:03]} 23. Bxc5 {[%emt 0:00:14]} Rxc5 {[%emt 0:00:03]} 24. Be4 {[%emt 0:00:24]} b6 {[%emt 0:00:14]} 25. Rd1 {[%emt 0:00:11]} Qc7 {[%emt 0:00:37]} 26. Qe3 {[%emt 0:00:34]} Ba4 {[%emt 0:00:26]} 27. Rxd8+ {[%emt 0:00:04]} Qxd8 {[%emt 0:00:02]} 28. h3 {[%emt 0:00:04]} b5 {[%emt 0:00:28]} 29. Rb2 {[%emt 0:01:10]} Qc7 {[%emt 0:01:32]} 30. Rd2 {[%emt 0:00:33]} Rc3 {[%emt 0:00:05]} 31. Qh6 {[%emt 0:00:09]} Rxa3 {[%emt 0:00:30]} 32. Bd5 {[%emt 0:00:17]} Ra1+ {[%emt 0:00:26]} 33. Kh2 {[%emt 0:00:04]} Rd1 {[%emt 0:00:09]} 34. Bxe6 {[%emt 0:00:49]} fxe6 {[%emt 0:00:04]} 35. Re2 {[%emt 0:00:52]} Bb3 {[%emt 0:01:55]} 36. Ng5 {[%emt 0:00:05]} Rd4 {[%emt 0:00:13]} 37. Re3 {[%emt 0:00:47]} Bc4 {[%emt 0:00:17]} 38. f4 {[%emt 0:01:48]} Qg7 {[%emt 0:00:11]} 39. Qh4 {[%emt 0:00:03]} Bd5 {[%emt 0:00:01]} 40. Qe1 {[%emt 0:00:17]} Qc7 {[%emt 0:00:18]} 41. Qa1 {[%emt 0:00:27]} Rxf4 {[%emt 0:00:09]} 42. Re2 {[%emt 0:00:13]} b4 {[%emt 0:00:16]} 43. Qa4 {[%emt 0:00:16]} Qd8 {[%emt 0:00:28]} 44. Nf3 {[%emt 0:00:32]} Bxf3 {[%emt 0:00:03]} 45. gxf3 {[%emt 0:00:02]} Rxf3 {[%emt 0:00:07]} 46. Qc6 {[%emt 0:00:02]} Qd5 {[%emt 0:00:04]} 47. Qe8+ {[%emt 0:00:03]} Rf8 {[%emt 0:00:02]} 48. Qe7 {[%emt 0:00:06]} b3 {[%emt 0:00:03]} 49. Qa3 {[%emt 0:00:15]} Qc4 {[%emt 0:00:03]} 50. Rb2 {[%emt 0:00:06]} a4 {[%emt 0:00:03]} 51. Qd6 {[%emt 0:00:06]} Qf4+ {[%emt 0:00:07]} 0-1

[Event "European Online Club-ch-D 2021"]
[Site "Online"]
[Date "2021.03.27"]
[Round "6.6"]
[White "Nandhidhaa, P V"]
[Black "Gongora Montes, Benjamin"]
[Result "1-0"]
[ECO "C26"]
[WhiteElo "2365"]
[BlackElo "2198"]
[Annotator "NA"]
[PlyCount "91"]
[EventDate "2021.03.27"]
[EventType "team-tourn"]
[EventCountry "NET"]
[SourceTitle "playchess.com"]
[Source "ChessBase"]
[SourceQuality "1"]
[TimeControl "900+5"]

1. e4 {[%emt 0:00:00]} e5 {[%emt 0:00:15]} 2. Nc3 {[%emt 0:00:02]} Nf6 {[%emt 0:00:05]} 3. g3 {[%emt 0:00:05]} Bc5 {[%emt 0:00:29]} 4. Bg2 {[%emt 0:00:14]} d6 {[%emt 0:00:06]} 5. h3 {[%emt 0:00:12]} h5 {[%emt 0:00:07]} 6. d3 {[%emt 0:00:17]} h4 {[%emt 0:00:04]} 7. g4 {[%emt 0:00:07]} Be6 {[%emt 0:00:13]} 8. Bg5 {[%emt 0:00:23]} c6 {[%emt 0:00:14]} 9. Nge2 {[%emt 0:01:01]} Nbd7 {[%emt 0:00:11]} 10. O-O {[%emt 0:01:49]} Qe7 {[%emt 0:03:56]} 11. Na4 {[%emt 0:00:31]} Bb4 {[%emt 0:00:08]} 12. c3 {[%emt 0:00:29]} Ba5 {[%emt 0:00:03]} 13. b4 {[%emt 0:00:16]} Bc7 {[%emt 0:00:04]} 14. d4 {[%emt 0:00:13]} Bc4 {[%emt 0:01:03]} 15. Nb2 {[%emt 0:00:39]} Bxe2 {[%emt 0:00:06]} 16. Qxe2 {[%emt 0:00:03]} Nf8 {[%emt 0:00:02]} 17. d5 {[%emt 0:02:19]} Ng6 {[%emt 0:00:28]} 18. dxc6 {[%emt 0:01:26]} bxc6 {[%emt 0:00:05]} 19. Qc4 {[%emt 0:00:15]} Qd7 {[%emt 0:00:07]} 20. Rad1 {[%emt 0:00:42]} O-O {[%emt 0:03:56]} 21. Nd3 {[%emt 0:00:08]} Nxg4 {[%emt 0:00:20]} 22. Kh1 {[%emt 0:02:15]} Nf6 {[%emt 0:01:30]} 23. f4 {[%emt 0:00:17]} Nh5 {[%emt 0:00:46]} 24. f5 {[%emt 0:01:00]} Ng3+ {[%emt 0:00:18]} 25. Kh2 {[%emt 0:00:35]} Nxf1+ {[%emt 0:00:04]} 26. Rxf1 {[%emt 0:00:02]} Nf4 {[%emt 0:00:10]} 27. Nxf4 {[%emt 0:00:24]} exf4 {[%emt 0:00:03]} 28. Bf3 {[%emt 0:00:08]} d5 {[%emt 0:00:52]} 29. Qd3 {[%emt 0:00:16]} a5 {[%emt 0:00:24]} 30. b5 {[%emt 0:00:13]} cxb5 {[%emt 0:00:23]} 31. exd5 {[%emt 0:00:02]} Be5 {[%emt 0:00:08]} 32. f6 {[%emt 0:00:33]} Rac8 {[%emt 0:00:13]} 33. fxg7 {[%emt 0:00:07]} Bxg7 {[%emt 0:00:10]} 34. Bg4 {[%emt 0:00:08]} Qd6 {[%emt 0:00:05]} 35. Bxc8 {[%emt 0:00:05]} Rxc8 {[%emt 0:00:03]} 36. Bxf4 {[%emt 0:00:02]} Qa3 {[%emt 0:00:03]} 37. Rg1 {[%emt 0:00:14]} Rxc3 {[%emt 0:00:16]} 38. Rxg7+ {[%emt 0:00:09]} Kxg7 {[%emt 0:00:08]} 39. Be5+ {[%emt 0:00:02]} f6 {[%emt 0:00:07]} 40. Bxc3 {[%emt 0:00:02]} Qxa2+ {[%emt 0:00:03]} 41. Bd2 {[%emt 0:00:03]} b4 {[%emt 0:00:28]} 42. d6 {[%emt 0:00:03]} b3 {[%emt 0:00:03]} 43. d7 {[%emt 0:00:02]} b2 {[%emt 0:00:02]} 44. d8=Q {[%emt 0:00:02]} b1=Q {[%emt 0:00:03]} 45. Qe7+ {[%emt 0:00:07]} Kg8 {[%emt 0:00:15]} 46. Qdd8# {[%emt 0:00:03]} 1-0

[Event "European Online Club-ch-D 2021"]
[Site "Online"]
[Date "2021.03.27"]
[Round "6.7"]
[White "Pascual Palomo, Lucia"]
[Black "Dauletova, Gulmira"]
[Result "0-1"]
[ECO "C47"]
[WhiteElo "2101"]
[BlackElo "2285"]
[Annotator "NA"]
[PlyCount "94"]
[EventDate "2021.03.27"]
[EventType "team-tourn"]
[EventCountry "NET"]
[SourceTitle "playchess.com"]
[Source "ChessBase"]
[SourceQuality "1"]
[TimeControl "900+5"]

1. e4 {[%emt 0:00:00]} e5 {[%emt 0:00:03]} 2. Nf3 {[%emt 0:00:08]} Nc6 {[%emt 0:00:03]} 3. d4 {[%emt 0:00:12]} exd4 {[%emt 0:00:02]} 4. Nxd4 {[%emt 0:00:05]} Nf6 {[%emt 0:00:03]} 5. Nc3 {[%emt 0:00:45]} Bb4 {[%emt 0:00:09]} 6. Nxc6 {[%emt 0:00:07]} bxc6 {[%emt 0:00:10]} 7. Bd3 {[%emt 0:00:03]} O-O {[%emt 0:00:46]} 8. O-O {[%emt 0:00:09]} d5 {[%emt 0:00:08]} 9. exd5 {[%emt 0:01:27]} cxd5 {[%emt 0:00:05]} 10. Bg5 {[%emt 0:00:04]} c6 {[%emt 0:00:16]} 11. Ne2 {[%emt 0:00:30]} Bd6 {[%emt 0:01:40]} 12. h3 {[%emt 0:00:23]} Be5 {[%emt 0:00:51]} 13. c3 {[%emt 0:00:08]} h6 {[%emt 0:00:22]} 14. Bh4 {[%emt 0:00:16]} Rb8 {[%emt 0:00:16]} 15. Rb1 {[%emt 0:00:33]} Re8 {[%emt 0:00:41]} 16. f4 {[%emt 0:00:29]} Bd6 {[%emt 0:00:13]} 17. Nd4 {[%emt 0:00:07]} Bd7 {[%emt 0:00:28]} 18. Kh1 {[%emt 0:01:00]} Be7 {[%emt 0:01:29]} 19. Bf5 {[%emt 0:01:08]} Ne4 {[%emt 0:01:16]} 20. Be1 {[%emt 0:01:00]} Bf6 {[%emt 0:00:29]} 21. Bxd7 {[%emt 0:00:45]} Qxd7 {[%emt 0:00:03]} 22. Qa4 {[%emt 0:00:12]} Rb6 {[%emt 0:00:31]} 23. Rf3 {[%emt 0:02:44]} Reb8 {[%emt 0:01:32]} 24. b3 {[%emt 0:00:20]} Qb7 {[%emt 0:00:14]} 25. Qa3 {[%emt 0:01:23]} c5 {[%emt 0:01:42]} 26. Ne2 {[%emt 0:00:12]} d4 {[%emt 0:00:34]} 27. cxd4 {[%emt 0:00:32]} cxd4 {[%emt 0:00:02]} 28. Rd1 {[%emt 0:00:06]} Ra6 {[%emt 0:00:32]} 29. Qc1 {[%emt 0:00:20]} Rxa2 {[%emt 0:01:05]} 30. Nxd4 {[%emt 0:00:03]} Rd8 {[%emt 0:00:12]} 31. Nf5 {[%emt 0:01:08]} Rxd1 {[%emt 0:00:24]} 32. Qxd1 {[%emt 0:00:05]} Ra1 {[%emt 0:00:04]} 33. Qe2 {[%emt 0:00:23]} Bc3 {[%emt 0:01:12]} 34. Rf1 {[%emt 0:00:04]} g6 {[%emt 0:00:02]} 35. Bxc3 {[%emt 0:00:16]} Rxf1+ {[%emt 0:00:04]} 36. Qxf1 {[%emt 0:00:03]} Nxc3 {[%emt 0:00:03]} 37. Nxh6+ {[%emt 0:00:08]} Kg7 {[%emt 0:00:02]} 38. Ng4 {[%emt 0:00:08]} Qxb3 {[%emt 0:00:01]} 39. Kh2 {[%emt 0:00:22]} Qd5 {[%emt 0:00:16]} 40. Qa6 {[%emt 0:00:09]} Qd4 {[%emt 0:00:03]} 41. Qf1 {[%emt 0:00:15]} a5 {[%emt 0:00:03]} 42. Ne5 {[%emt 0:00:04]} a4 {[%emt 0:00:03]} 43. g3 {[%emt 0:00:10]} a3 {[%emt 0:00:03]} 44. Qg2 {[%emt 0:00:04]} a2 {[%emt 0:00:03]} 45. Qf1 {[%emt 0:00:03]} Qd2+ {[%emt 0:00:05]} 46. Kh1 {[%emt 0:00:03]} Qd1 {[%emt 0:00:04]} 47. Qxd1 {[%emt 0:00:06]} Nxd1 {[%emt 0:00:02]} 0-1

[Event "European Online Club-ch-D 2021"]
[Site "Online"]
[Date "2021.03.27"]
[Round "6.8"]
[White "Muminova, Nafisa"]
[Black "Estevez Sacristan, Deva"]
[Result "1-0"]
[ECO "A80"]
[WhiteElo "2274"]
[BlackElo "1932"]
[Annotator "NA"]
[PlyCount "57"]
[EventDate "2021.03.27"]
[EventType "team-tourn"]
[EventCountry "NET"]
[SourceTitle "playchess.com"]
[Source "ChessBase"]
[SourceQuality "1"]
[TimeControl "900+5"]

1. d4 {[%emt 0:00:00]} f5 {[%emt 0:00:04]} 2. Nc3 {[%emt 0:00:05]} Nf6 {[%emt 0:00:03]} 3. Bg5 {[%emt 0:00:04]} d5 {[%emt 0:00:03]} 4. e3 {[%emt 0:00:17]} Be6 {[%emt 0:00:11]} 5. Nf3 {[%emt 0:00:05]} Ne4 {[%emt 0:01:35]} 6. Nxe4 {[%emt 0:00:17]} fxe4 {[%emt 0:00:14]} 7. Ne5 {[%emt 0:00:02]} g6 {[%emt 0:00:13]} 8. f3 {[%emt 0:00:26]} Bg7 {[%emt 0:00:29]} 9. Be2 {[%emt 0:01:15]} O-O {[%emt 0:00:23]} 10. O-O {[%emt 0:01:15]} exf3 {[%emt 0:00:27]} 11. Bxf3 {[%emt 0:00:28]} c5 {[%emt 0:00:23]} 12. c3 {[%emt 0:00:09]} Na6 {[%emt 0:03:24]} 13. Bg4 {[%emt 0:01:12]} Bxg4 {[%emt 0:00:15]} 14. Qxg4 {[%emt 0:00:03]} Qd6 {[%emt 0:00:16]} 15. Bf4 {[%emt 0:00:23]} Qf6 {[%emt 0:02:04]} 16. Bg3 {[%emt 0:01:08]} Qb6 {[%emt 0:00:17]} 17. Nd7 {[%emt 0:01:08]} Rxf1+ {[%emt 0:00:12]} 18. Rxf1 {[%emt 0:00:03]} Qc6 {[%emt 0:00:13]} 19. Ne5 {[%emt 0:00:14]} Qb6 {[%emt 0:00:52]} 20. Qd7 {[%emt 0:00:14]} cxd4 {[%emt 0:01:42]} 21. exd4 {[%emt 0:00:48]} Qd6 {[%emt 0:01:57]} 22. Qxb7 {[%emt 0:01:49]} Rb8 {[%emt 0:00:21]} 23. Qxa7 {[%emt 0:00:02]} Qe6 {[%emt 0:00:46]} 24. Nc6 {[%emt 0:02:13]} Qxc6 {[%emt 0:00:20]} 25. Bxb8 {[%emt 0:00:04]} Qc8 {[%emt 0:00:07]} 26. Bg3 {[%emt 0:00:26]} h6 {[%emt 0:00:11]} 27. h3 {[%emt 0:00:12]} Kh7 {[%emt 0:00:05]} 28. Qxe7 {[%emt 0:00:04]} Qg8 {[%emt 0:00:06]} 29. Rf7 {[%emt 0:00:08]} 1-0